[Event "14th Chennai GM Open 2023"]
[Site "Chennai"]
[Date "2024.01.05"]
[Round "8.5"]
[White "Murali Krishnan B T"]
[Black "Tologon tegin, Semetei"]
[Result "1/2-1/2"]
[ECO "A41"]
[WhiteElo "2181"]
[BlackElo "2384"]
[Annotator "RC"]
[PlyCount "96"]
[EventDate "2023.12.31"]
[EventType "swiss"]
[EventCountry "IND"]
[SourceTitle "playchess.com"]
[Source "ChessBase"]
[SourceQuality "1"]
[TimeControl "5400+30"]

1. d4 {[%emt 0:00:05]} g6 {[%emt 0:05:02]} 2. c4 {[%emt 0:01:07]} Bg7 {[%emt 0:00:12]} 3. e4 {[%emt 0:00:07]} d6 {[%emt 0:00:17]} 4. Nc3 {[%emt 0:00:25]} e5 {[%emt 0:00:31]} 5. dxe5 {[%emt 0:06:02]} dxe5 {[%emt 0:00:05]} 6. Qxd8+ {[%emt 0:00:06]} Kxd8 {[%emt 0:00:07]} 7. Nf3 {[%emt 0:01:38]} f6 {[%emt 0:00:42]} 8. Be3 {[%emt 0:00:47]} Be6 {[%emt 0:00:13]} 9. O-O-O+ {[%emt 0:02:16]} Nd7 {[%emt 0:00:07]} 10. Nd2 {[%emt 0:01:10]} Bh6 {[%emt 0:17:01]} 11. Bxh6 {[%emt 0:06:58]} Nxh6 {[%emt 0:00:48]} 12. Nb3 {[%emt 0:03:06]} Kc8 {[%emt 0:00:37]} 13. Be2 {[%emt 0:00:28]} c6 {[%emt 0:00:23]} 14. Na4 {[%emt 0:13:51]} Kc7 {[%emt 0:01:16]} 15. Nac5 {[%emt 0:01:35]} Nxc5 {[%emt 0:00:08]} 16. Nxc5 {[%emt 0:00:04]} Bc8 {[%emt 1:11:01]} 17. Na4 {[%emt 0:05:42]} b6 {[%emt 0:00:00]} 18. Rd2 {[%emt 0:08:42]} Nf7 {[%emt 0:00:00]} 19. h4 {[%emt 0:02:23]} Nd8 {[%emt 0:00:00]} 20. Nc3 {[%emt 0:06:17]} Ne6 {[%emt 0:00:00]} 21. Bg4 {[%emt 0:01:50]} Nd4 {[%emt 0:00:00]} 22. Bxc8 {[%emt 0:00:05]} Raxc8 {[%emt 0:00:00]} 23. Ne2 {[%emt 0:00:09]} Nxe2+ {[%emt 0:00:00]} 24. Rxe2 {[%emt 0:00:35]} Rcd8 {[%emt 0:00:00]} 25. Rd1 {[%emt 0:00:23]} Rxd1+ {[%emt 0:00:00]} 26. Kxd1 {[%emt 0:00:04]} Rd8+ {[%emt 0:00:00]} 27. Rd2 {[%emt 0:00:22]} Rd4 {[%emt 0:00:00]} 28. Rxd4 {[%emt 0:01:08]} exd4 {[%emt 0:00:00]} 29. f4 {[%emt 0:11:15]} g5 {[%emt 0:00:00]} 30. g3 {[%emt 0:00:10]} Kd6 {[%emt 0:00:00]} 31. b4 {[%emt 0:00:45]} c5 {[%emt 0:00:00]} 32. b5 {[%emt 0:00:05]} Ke7 {[%emt 0:00:00]} 33. Ke2 {[%emt 0:00:51]} gxh4 {[%emt 0:00:00]} 34. gxh4 {[%emt 0:00:09]} Kf7 {[%emt 0:00:00]} 35. Kf2 {[%emt 0:11:03]} Kg6 {[%emt 0:00:00]} 36. Kf3 {[%emt 0:02:36]} Kh6 {[%emt 0:00:00]} 37. Kg3 {[%emt 0:04:16]} Kh5 {[%emt 0:00:00]} 38. f5 {[%emt 0:00:42]} Kh6 {[%emt 0:00:00]} 39. Kg4 {[%emt 0:00:20]} Kg7 {[%emt 0:00:00]} 40. Kf3 {[%emt 0:00:26]} Kf7 {[%emt 0:00:00]} 41. Kf4 {[%emt 0:03:41]} Ke7 {[%emt 0:00:00]} 42. Kf3 {[%emt 0:00:58]} Kd7 {[%emt 0:00:00]} 43. Kg3 {[%emt 0:00:15]} Kc7 {[%emt 0:00:00]} 44. Kg4 {[%emt 0:00:32]} Kd6 {[%emt 0:00:00]} 45. Kf4 {[%emt 0:00:05]} h6 {[%emt 0:03:42]} 46. h5 {[%emt 0:00:47]} Kd7 {[%emt 0:00:27]} 47. Kf3 {[%emt 0:00:05]} Ke7 {[%emt 0:00:01]} 48. Kg4 {[%emt 0:00:06]} Kd6 {[%emt 0:00:10]} 1/2-1/2

[Event "14th Chennai GM Open 2023"]
[Site "Chennai"]
[Date "2024.01.05"]
[Round "8.6"]
[White "Pawar, Harshit"]
[Black "Shahil Dey"]
[Result "1-0"]
[ECO "B24"]
[WhiteElo "1945"]
[BlackElo "2368"]
[Annotator "RC"]
[PlyCount "75"]
[EventDate "2023.12.31"]
[EventType "swiss"]
[EventCountry "IND"]
[SourceTitle "playchess.com"]
[Source "ChessBase"]
[SourceQuality "1"]
[TimeControl "5400+30"]

1. e4 {[%emt 0:00:26]} c5 {[%emt 0:00:05]} 2. Nc3 {[%emt 0:00:03]} e6 {[%emt 0:00:06]} 3. Nge2 {[%emt 0:00:53]} Nc6 {[%emt 0:02:08]} 4. g3 {[%emt 0:00:30]} Nf6 {[%emt 0:01:33]} 5. Bg2 {[%emt 0:00:22]} d5 {[%emt 0:00:58]} 6. exd5 {[%emt 0:00:54]} exd5 {[%emt 0:00:55]} 7. d4 {[%emt 0:00:08]} cxd4 {[%emt 0:00:53]} 8. Nxd4 {[%emt 0:00:21]} Bg4 {[%emt 0:00:18]} 9. Qd3 {[%emt 0:01:21]} Be7 {[%emt 0:10:00]} 10. O-O {[%emt 0:13:40]} O-O {[%emt 0:00:06]} 11. h3 {[%emt 0:03:38]} Bh5 {[%emt 0:01:08]} 12. Nce2 {[%emt 0:17:09]} Bg6 {[%emt 0:03:01]} 13. Qd1 {[%emt 0:00:31]} Qb6 {[%emt 0:02:49]} 14. c3 {[%emt 0:03:57]} Rad8 {[%emt 0:18:52]} 15. Qb3 {[%emt 0:15:03]} Qa6 {[%emt 0:04:22]} 16. Re1 {[%emt 0:03:12]} Rfe8 {[%emt 0:10:30]} 17. Bg5 {[%emt 0:07:44]} h6 {[%emt 0:03:40]} 18. Be3 {[%emt 0:08:06]} Bd3 {[%emt 0:05:44]} 19. Nf4 {[%emt 0:00:45]} Bc4 {[%emt 0:01:44]} 20. Qd1 {[%emt 0:00:09]} g5 {[%emt 0:01:56]} 21. Nh5 {[%emt 0:01:54]} Bd3 {[%emt 0:00:48]} 22. Nxc6 {[%emt 0:06:34]} bxc6 {[%emt 0:00:13]} 23. Bc5 {[%emt 0:00:10]} Ne4 {[%emt 0:02:41]} 24. Bxe7 {[%emt 0:00:06]} Rxe7 {[%emt 0:00:11]} 25. Re3 {[%emt 0:00:27]} Nxf2 {[%emt 0:01:08]} 26. Qf3 {[%emt 0:03:48]} Ne4 {[%emt 0:10:33]} 27. Rxd3 {[%emt 0:00:48]} Qb6+ {[%emt 0:00:33]} 28. Kh2 {[%emt 0:00:41]} Qxb2 {[%emt 0:00:33]} 29. Re1 {[%emt 0:00:52]} Rd6 {[%emt 0:00:32]} 30. Re2 {[%emt 0:03:20]} Qc1 {[%emt 0:01:49]} 31. Qf5 {[%emt 0:01:15]} Qa3 {[%emt 0:09:26]} 32. Qc8+ {[%emt 0:01:50]} Kh7 {[%emt 0:00:05]} 33. Qf8 {[%emt 0:00:05]} Rg6 {[%emt 0:01:08]} 34. Bxe4 {[%emt 0:00:02]} Rxe4 {[%emt 0:00:35]} 35. Qxa3 {[%emt 0:00:03]} Rxe2+ {[%emt 0:00:06]} 36. Kg1 {[%emt 0:00:09]} Rge6 {[%emt 0:00:12]} 37. Rf3 {[%emt 0:00:36]} Re1+ {[%emt 0:00:16]} 38. Rf1 {[%emt 0:00:06]} 1-0

[Event "14th Chennai GM Open 2023"]
[Site "Chennai"]
[Date "2024.01.05"]
[Round "8.7"]
[White "Majumder Shrayan"]
[Black "Buscara, Sevan"]
[Result "0-1"]
[ECO "A11"]
[WhiteElo "1916"]
[BlackElo "2359"]
[Annotator "RC"]
[PlyCount "111"]
[EventDate "2023.12.31"]
[EventType "swiss"]
[EventCountry "IND"]
[SourceTitle "playchess.com"]
[Source "ChessBase"]
[SourceQuality "1"]
[TimeControl "5400+30"]

1. c4 {[%emt 0:00:23]} c6 {[%emt 0:01:36]} 2. Nf3 {[%emt 0:00:28]} d5 {[%emt 0:00:59]} 3. g3 {[%emt 0:00:13]} Nf6 {[%emt 0:00:39]} 4. Bg2 {[%emt 0:00:07]} Bf5 {[%emt 0:01:46]} 5. Qb3 {[%emt 0:01:07]} Qb6 {[%emt 0:01:33]} 6. d3 {[%emt 0:00:29]} e6 {[%emt 0:02:08]} 7. O-O {[%emt 0:11:09]} Nbd7 {[%emt 0:00:17]} 8. Be3 {[%emt 0:08:21]} Bc5 {[%emt 0:06:03]} 9. Bxc5 {[%emt 0:00:51]} Nxc5 {[%emt 0:00:17]} 10. Qc2 {[%emt 0:04:07]} O-O {[%emt 0:07:50]} 11. Nh4 {[%emt 0:04:02]} d4 {[%emt 0:04:41]} 12. Nxf5 {[%emt 0:14:46]} exf5 {[%emt 0:00:03]} 13. Nd2 {[%emt 0:00:38]} Rfe8 {[%emt 0:08:21]} 14. Nf3 {[%emt 0:04:37]} Rad8 {[%emt 0:03:42]} 15. Rab1 {[%emt 0:01:17]} a5 {[%emt 0:01:59]} 16. b3 {[%emt 0:02:31]} Qa7 {[%emt 0:08:25]} 17. a3 {[%emt 0:06:02]} a4 {[%emt 0:13:39]} 18. b4 {[%emt 0:08:45]} Nb3 {[%emt 0:00:12]} 19. Rbe1 {[%emt 0:00:26]} f4 {[%emt 0:04:31]} 20. Nd2 {[%emt 0:01:18]} fxg3 {[%emt 0:00:31]} 21. hxg3 {[%emt 0:00:21]} h5 {[%emt 0:00:54]} 22. Bf3 {[%emt 0:14:40]} Qb8 {[%emt 0:06:18]} 23. Nxb3 {[%emt 0:00:48]} axb3 {[%emt 0:00:03]} 24. Qd2 {[%emt 0:00:30]} Re5 {[%emt 0:03:54]} 25. e3 {[%emt 0:08:24]} dxe3 {[%emt 0:02:13]} 26. Rxe3 {[%emt 0:00:08]} h4 {[%emt 0:02:40]} 27. gxh4 {[%emt 0:01:58]} Rd4 {[%emt 0:03:10]} 28. Rxe5 {[%emt 0:03:48]} Ng4 {[%emt 0:05:13]} 29. Rfe1 {[%emt 0:02:02]} Nxe5 {[%emt 0:00:10]} 30. Qe3 {[%emt 0:00:24]} Rxd3 {[%emt 0:01:06]} 31. Qxe5 {[%emt 0:00:06]} Qxe5 {[%emt 0:00:06]} 32. Rxe5 {[%emt 0:00:03]} Rxf3 {[%emt 0:00:26]} 33. Re2 {[%emt 0:00:42]} Kh7 {[%emt 0:05:05]} 34. Rb2 {[%emt 0:00:30]} Kg6 {[%emt 0:00:13]} 35. Kf1 {[%emt 0:00:26]} Kf5 {[%emt 0:00:22]} 36. Ke2 {[%emt 0:00:41]} Ke4 {[%emt 0:01:36]} 37. a4 {[%emt 0:00:36]} Rc3 {[%emt 0:02:43]} 38. b5 {[%emt 0:00:33]} Kd4 {[%emt 0:01:40]} 39. a5 {[%emt 0:00:11]} cxb5 {[%emt 0:02:09]} 40. cxb5 {[%emt 0:00:10]} Kc5 {[%emt 0:00:11]} 41. a6 {[%emt 0:00:28]} bxa6 {[%emt 0:00:03]} 42. bxa6 {[%emt 0:00:07]} Kb6 {[%emt 0:00:02]} 43. Kd2 {[%emt 0:00:50]} Rf3 {[%emt 0:00:43]} 44. Ke2 {[%emt 0:00:10]} Rh3 {[%emt 0:00:30]} 45. Rb1 {[%emt 0:00:12]} Kxa6 {[%emt 0:00:19]} 46. f3 {[%emt 0:00:41]} b2 {[%emt 0:00:31]} 47. Ke3 {[%emt 0:00:39]} Rh2 {[%emt 0:00:15]} 48. Kd3 {[%emt 0:02:02]} Kb5 {[%emt 0:00:18]} 49. Kc3 {[%emt 0:00:09]} Kc5 {[%emt 0:00:11]} 50. Rd1 {[%emt 0:00:19]} g6 {[%emt 0:01:08]} 51. Kb3 {[%emt 0:00:16]} Rd2 {[%emt 0:01:37]} 52. Rh1 {[%emt 0:00:39]} Kd4 {[%emt 0:00:51]} 53. h5 {[%emt 0:00:58]} gxh5 {[%emt 0:00:18]} 54. Ka2 {[%emt 0:00:09]} f5 {[%emt 0:00:43]} 55. Rxh5 {[%emt 0:00:41]} f4 {[%emt 0:00:03]} 56. Rh8 {[%emt 0:00:41]} 0-1

[Event "14th Chennai GM Open 2023"]
[Site "Chennai"]
[Date "2024.01.05"]
[Round "8.8"]
[White "Jake Shanty"]
[Black "Manik, Mikulas"]
[Result "0-1"]
[ECO "E69"]
[WhiteElo "1903"]
[BlackElo "2343"]
[Annotator "RC"]
[PlyCount "118"]
[EventDate "2023.12.31"]
[EventType "swiss"]
[EventCountry "IND"]
[SourceTitle "playchess.com"]
[Source "ChessBase"]
[SourceQuality "1"]
[TimeControl "5400+30"]

1. c4 {[%emt 0:00:03]} g6 {[%emt 0:00:02]} 2. Nc3 {[%emt 0:02:02]} Bg7 {[%emt 0:00:04]} 3. g3 {[%emt 0:01:16]} Nf6 {[%emt 0:00:10]} 4. Bg2 {[%emt 0:00:37]} O-O {[%emt 0:00:05]} 5. d4 {[%emt 0:01:11]} d6 {[%emt 0:00:04]} 6. Nf3 {[%emt 0:00:49]} Nbd7 {[%emt 0:00:05]} 7. O-O {[%emt 0:00:54]} e5 {[%emt 0:00:03]} 8. e4 {[%emt 0:02:10]} c6 {[%emt 0:00:09]} 9. h3 {[%emt 0:05:53]} Qa5 {[%emt 0:00:16]} 10. Be3 {[%emt 0:04:44]} Re8 {[%emt 0:00:24]} 11. d5 {[%emt 0:06:44]} Qb4 {[%emt 0:06:14]} 12. Qb3 {[%emt 0:14:35]} a5 {[%emt 0:00:07]} 13. Nd2 {[%emt 0:01:50]} Nc5 {[%emt 0:04:13]} 14. Qc2 {[%emt 0:05:29]} a4 {[%emt 0:04:44]} 15. a3 {[%emt 0:09:39]} Qa5 {[%emt 0:00:28]} 16. b4 {[%emt 0:03:37]} axb3 {[%emt 0:00:10]} 17. Nxb3 {[%emt 0:00:12]} Nxb3 {[%emt 0:00:25]} 18. Qxb3 {[%emt 0:00:11]} Nd7 {[%emt 0:03:42]} 19. Qb4 {[%emt 0:06:21]} Qc7 {[%emt 0:09:11]} 20. Rfd1 {[%emt 0:07:04]} c5 {[%emt 0:03:01]} 21. Nb5 {[%emt 0:01:16]} Qd8 {[%emt 0:01:10]} 22. Qb3 {[%emt 0:02:53]} Ra6 {[%emt 0:00:16]} 23. Rab1 {[%emt 0:05:26]} f5 {[%emt 0:03:17]} 24. f3 {[%emt 0:03:07]} Rf8 {[%emt 0:07:02]} 25. g4 {[%emt 0:04:13]} f4 {[%emt 0:00:15]} 26. Bf2 {[%emt 0:00:16]} Bf6 {[%emt 0:00:09]} 27. Qc3 {[%emt 0:03:25]} Rf7 {[%emt 0:04:22]} 28. Bf1 {[%emt 0:03:38]} h5 {[%emt 0:03:13]} 29. Be2 {[%emt 0:01:03]} Rh7 {[%emt 0:06:07]} 30. Kg2 {[%emt 0:01:21]} Bh4 {[%emt 0:00:08]} 31. Bxh4 {[%emt 0:02:51]} Qxh4 {[%emt 0:00:08]} 32. Qe1 {[%emt 0:00:47]} hxg4 {[%emt 0:02:30]} 33. Qxh4 {[%emt 0:00:12]} gxf3+ {[%emt 0:00:15]} 34. Bxf3 {[%emt 0:00:25]} Rxh4 {[%emt 0:00:04]} 35. Bg4 {[%emt 0:01:04]} Rxg4+ {[%emt 0:04:14]} 36. hxg4 {[%emt 0:00:17]} Nf6 {[%emt 0:00:01]} 37. Rd3 {[%emt 0:00:46]} Nxe4 {[%emt 0:00:32]} 38. Nc7 {[%emt 0:00:31]} Ra4 {[%emt 0:00:24]} 39. Ne6 {[%emt 0:00:25]} Rxc4 {[%emt 0:11:27]} 40. Rb2 {[%emt 0:00:18]} Nf6 {[%emt 0:05:19]} 41. g5 {[%emt 0:00:39]} e4 {[%emt 0:00:09]} 42. Rh3 {[%emt 0:00:41]} Nxd5 {[%emt 0:00:12]} 43. Rh6 {[%emt 0:00:14]} Bxe6 {[%emt 0:00:32]} 44. Rxb7 {[%emt 0:00:19]} Ne3+ {[%emt 0:01:24]} 45. Kh2 {[%emt 0:00:38]} Ng4+ {[%emt 0:00:07]} 46. Kg2 {[%emt 0:00:05]} Rc2+ {[%emt 0:00:33]} 47. Kg1 {[%emt 0:00:06]} Nxh6 {[%emt 0:00:06]} 48. gxh6 {[%emt 0:00:05]} e3 {[%emt 0:00:13]} 49. Rg7+ {[%emt 0:00:09]} Kh8 {[%emt 0:00:11]} 50. Rxg6 {[%emt 0:00:04]} Rc1+ {[%emt 0:00:08]} 51. Kh2 {[%emt 0:00:05]} Bd5 {[%emt 0:00:09]} 52. Kh3 {[%emt 0:00:08]} Rh1+ {[%emt 0:00:07]} 53. Kg4 {[%emt 0:00:04]} Rg1+ {[%emt 0:00:07]} 54. Kf5 {[%emt 0:00:03]} Rxg6 {[%emt 0:00:04]} 55. Kxg6 {[%emt 0:00:06]} e2 {[%emt 0:00:04]} 56. a4 {[%emt 0:00:11]} e1=Q {[%emt 0:00:04]} 57. h7 {[%emt 0:00:09]} Qe5 {[%emt 0:00:15]} 58. Kh6 {[%emt 0:00:20]} Qf6+ {[%emt 0:00:07]} 59. Kh5 {[%emt 0:00:07]} Bf3# {[%emt 0:00:03]} 0-1

[Event "14th Chennai GM Open 2023"]
[Site "Chennai"]
[Date "2024.01.05"]
[Round "8.9"]
[White "Balkishan, A.."]
[Black "Laxman, R.R."]
[Result "0-1"]
[ECO "D05"]
[WhiteElo "1855"]
[BlackElo "2338"]
[Annotator "RC"]
[PlyCount "90"]
[EventDate "2023.12.31"]
[EventType "swiss"]
[EventCountry "IND"]
[SourceTitle "playchess.com"]
[Source "ChessBase"]
[SourceQuality "1"]
[TimeControl "5400+30"]

1. d4 {[%emt 0:01:34]} Nf6 {[%emt 0:00:08]} 2. Nf3 {[%emt 0:00:13]} e6 {[%emt 0:00:06]} 3. e3 {[%emt 0:00:13]} d5 {[%emt 0:01:57]} 4. Bd3 {[%emt 0:00:13]} c5 {[%emt 0:00:13]} 5. b3 {[%emt 0:00:33]} Nc6 {[%emt 0:00:42]} 6. Bb2 {[%emt 0:00:05]} Bd6 {[%emt 0:02:00]} 7. O-O {[%emt 0:03:58]} cxd4 {[%emt 0:00:40]} 8. exd4 {[%emt 0:00:23]} O-O {[%emt 0:00:05]} 9. a3 {[%emt 0:00:49]} b6 {[%emt 0:00:40]} 10. Nbd2 {[%emt 0:01:52]} Bb7 {[%emt 0:00:02]} 11. Ne5 {[%emt 0:02:36]} Ne7 {[%emt 0:03:39]} 12. Qe2 {[%emt 0:01:15]} Rc8 {[%emt 0:00:41]} 13. f4 {[%emt 0:03:10]} b5 {[%emt 1:26:07]} 14. Rf3 {[%emt 0:14:15]} a6 {[%emt 0:00:00]} 15. Rh3 {[%emt 0:02:33]} Ng6 {[%emt 0:00:00]} 16. Rf1 {[%emt 0:02:39]} Rc7 {[%emt 0:00:00]} 17. g4 {[%emt 0:05:35]} Re8 {[%emt 0:00:00]} 18. g5 {[%emt 0:09:11]} Ne4 {[%emt 0:00:00]} 19. Qh5 {[%emt 0:10:44]} Bxe5 {[%emt 0:00:00]} 20. Qxh7+ {[%emt 0:02:01]} Kf8 {[%emt 0:00:00]} 21. fxe5 {[%emt 0:14:49]} Nxg5 {[%emt 0:00:00]} 22. Qh5 {[%emt 0:06:30]} Nxh3+ {[%emt 0:00:00]} 23. Qxh3 {[%emt 0:00:03]} Qg5+ {[%emt 0:00:00]} 24. Kh1 {[%emt 0:04:00]} Nf4 {[%emt 0:00:00]} 25. Qf3 {[%emt 0:01:52]} Nxd3 {[%emt 0:00:00]} 26. Qxd3 {[%emt 0:00:02]} Ke7 {[%emt 0:00:00]} 27. Bc3 {[%emt 0:00:23]} Rh8 {[%emt 0:00:00]} 28. Ba5 {[%emt 0:01:12]} Rcc8 {[%emt 0:00:00]} 29. Bb4+ {[%emt 0:00:10]} Ke8 {[%emt 0:00:00]} 30. c3 {[%emt 0:01:23]} Qh5 {[%emt 0:00:00]} 31. Qg3 {[%emt 0:02:07]} Rh6 {[%emt 0:00:00]} 32. Qf4 {[%emt 0:01:28]} g5 {[%emt 0:00:00]} 33. Qf2 {[%emt 0:00:43]} g4 {[%emt 0:00:00]} 34. Rg1 {[%emt 0:00:13]} Kd7 {[%emt 0:00:00]} 35. Rg2 {[%emt 0:03:01]} Rg8 {[%emt 0:00:00]} 36. Nf1 {[%emt 0:00:19]} Qf5 {[%emt 0:00:00]} 37. Qe2 {[%emt 0:00:10]} Rh3 {[%emt 0:00:00]} 38. Kg1 {[%emt 0:01:32]} Rf3 {[%emt 0:00:00]} 39. a4 {[%emt 0:01:01]} bxa4 {[%emt 0:00:00]} 40. bxa4 {[%emt 0:00:07]} Qb1 {[%emt 0:00:00]} 41. Rf2 {[%emt 0:01:16]} Rg5 {[%emt 0:00:00]} 42. Qb2 {[%emt 0:01:03]} g3 {[%emt 0:00:00]} 43. Rxf3 {[%emt 0:02:22]} gxh2+ {[%emt 0:00:00]} 44. Kh1 {[%emt 0:00:13]} Qxb2 {[%emt 0:00:00]} 45. Rxf7+ {[%emt 0:00:06]} Kc6 {[%emt 0:00:00]} 0-1

[Event "14th Chennai GM Open 2023"]
[Site "Chennai"]
[Date "2024.01.05"]
[Round "8.10"]
[White "Aakash G"]
[Black "Avinash Ramesh"]
[Result "1/2-1/2"]
[ECO "A41"]
[WhiteElo "1823"]
[BlackElo "2290"]
[Annotator "RC"]
[PlyCount "109"]
[EventDate "2023.12.31"]
[EventType "swiss"]
[EventCountry "IND"]
[SourceTitle "playchess.com"]
[Source "ChessBase"]
[SourceQuality "1"]
[TimeControl "5400+30"]

1. d4 {[%emt 0:00:03]} d6 {[%emt 0:08:04]} 2. c4 {[%emt 0:00:42]} e5 {[%emt 0:00:22]} 3. d5 {[%emt 0:00:32]} a5 {[%emt 0:00:11]} 4. Nc3 {[%emt 0:00:13]} Na6 {[%emt 0:00:12]} 5. e4 {[%emt 0:00:39]} g6 {[%emt 0:00:09]} 6. Bd3 {[%emt 0:00:12]} Bh6 {[%emt 0:00:07]} 7. h3 {[%emt 0:01:22]} Bxc1 {[%emt 0:02:15]} 8. Rxc1 {[%emt 0:00:07]} Qg5 {[%emt 0:05:31]} 9. Nf3 {[%emt 0:02:11]} Qh6 {[%emt 0:01:49]} 10. Rb1 {[%emt 0:00:09]} f5 {[%emt 0:04:25]} 11. Qa4+ {[%emt 0:11:59]} Bd7 {[%emt 0:01:20]} 12. Qd1 {[%emt 0:03:03]} Nf6 {[%emt 0:01:18]} 13. Nd2 {[%emt 0:05:31]} O-O {[%emt 0:05:35]} 14. Nf1 {[%emt 0:12:29]} Nc5 {[%emt 0:00:44]} 15. Ng3 {[%emt 0:01:38]} f4 {[%emt 0:08:33]} 16. Nf1 {[%emt 0:01:56]} c6 {[%emt 0:00:46]} 17. Bc2 {[%emt 0:04:49]} cxd5 {[%emt 0:08:49]} 18. Nxd5 {[%emt 0:00:35]} Nxd5 {[%emt 0:00:46]} 19. cxd5 {[%emt 0:01:05]} f3 {[%emt 0:01:55]} 20. gxf3 {[%emt 0:02:23]} Bb5 {[%emt 0:01:08]} 21. h4 {[%emt 0:05:42]} Rf4 {[%emt 0:01:34]} 22. h5 {[%emt 0:01:14]} Raf8 {[%emt 0:03:23]} 23. Qd2 {[%emt 0:07:14]} Bxf1 {[%emt 0:06:41]} 24. Kxf1 {[%emt 0:00:56]} gxh5 {[%emt 0:00:08]} 25. Rh3 {[%emt 0:05:32]} h4 {[%emt 0:05:26]} 26. Qe3 {[%emt 0:02:10]} Kh8 {[%emt 0:11:33]} 27. Ke2 {[%emt 0:29:34]} Qf6 {[%emt 0:00:11]} 28. Rg1 {[%emt 0:00:00]} Rf7 {[%emt 0:02:41]} 29. Rg4 {[%emt 0:00:00]} Nd7 {[%emt 0:01:57]} 30. Ba4 {[%emt 0:00:00]} Nc5 {[%emt 0:02:55]} 31. Bc2 {[%emt 0:00:00]} Rxg4 {[%emt 0:03:02]} 32. fxg4 {[%emt 0:00:00]} h6 {[%emt 0:00:00]} 33. Rh2 {[%emt 0:00:00]} Kg7 {[%emt 0:02:30]} 34. a3 {[%emt 0:00:00]} Nd7 {[%emt 0:01:39]} 35. Qh3 {[%emt 0:00:00]} Nf8 {[%emt 0:01:21]} 36. Qxh4 {[%emt 0:00:00]} Qf3+ {[%emt 0:00:05]} 37. Ke1 {[%emt 0:00:00]} Qf4 {[%emt 0:00:18]} 38. Qg3 {[%emt 0:00:00]} Qc1+ {[%emt 0:01:55]} 39. Bd1 {[%emt 0:00:00]} Nh7 {[%emt 0:00:09]} 40. Qh3 {[%emt 0:00:00]} Rf6 {[%emt 0:02:09]} 41. Qe3 {[%emt 0:00:00]} Qxb2 {[%emt 0:04:22]} 42. Rh5 {[%emt 0:00:00]} Qb5 {[%emt 0:02:43]} 43. g5 {[%emt 0:00:00]} hxg5 {[%emt 0:00:35]} 44. Qh3 {[%emt 0:00:14]} Nf8 {[%emt 0:00:32]} 45. Rxg5+ {[%emt 0:00:14]} Ng6 {[%emt 0:00:28]} 46. Qg4 {[%emt 0:04:59]} Qd3 {[%emt 0:00:40]} 47. Qd7+ {[%emt 0:01:11]} Rf7 {[%emt 0:00:09]} 48. Rxg6+ {[%emt 0:00:34]} Kxg6 {[%emt 0:00:01]} 49. Qxd6+ {[%emt 0:00:08]} Kh7 {[%emt 0:01:20]} 50. Qxe5 {[%emt 0:00:13]} Qxa3 {[%emt 0:00:12]} 51. Qh5+ {[%emt 0:00:41]} Kg7 {[%emt 0:00:00]} 52. Qg5+ {[%emt 0:00:07]} Kf8 {[%emt 0:00:15]} 53. Qd8+ {[%emt 0:00:06]} Kg7 {[%emt 0:00:04]} 54. Qg5+ {[%emt 0:00:05]} Kf8 {[%emt 0:00:15]} 55. Qd8+ {[%emt 0:00:07]} 1/2-1/2

[Event "14th Chennai GM Open 2023"]
[Site "Chennai"]
[Date "2024.01.05"]
[Round "8.11"]
[White "Podolchenko, Evgeniy"]
[Black "Ziatdinov, Raset"]
[Result "1-0"]
[ECO "D36"]
[WhiteElo "2376"]
[BlackElo "2100"]
[Annotator "RC"]
[PlyCount "109"]
[EventDate "2023.12.31"]
[EventType "swiss"]
[EventCountry "IND"]
[SourceTitle "playchess.com"]
[Source "ChessBase"]
[SourceQuality "1"]
[TimeControl "5400+30"]

1. d4 {[%emt 0:00:11]} d5 {[%emt 0:00:05]} 2. c4 {[%emt 0:00:04]} e6 {[%emt 0:00:03]} 3. Nc3 {[%emt 0:00:06]} Nf6 {[%emt 0:00:04]} 4. cxd5 {[%emt 0:00:05]} exd5 {[%emt 0:00:09]} 5. Bg5 {[%emt 0:00:03]} Be7 {[%emt 0:00:12]} 6. e3 {[%emt 0:00:06]} O-O {[%emt 0:00:15]} 7. Bd3 {[%emt 0:00:05]} Nbd7 {[%emt 0:00:24]} 8. Qc2 {[%emt 0:00:26]} c6 {[%emt 0:00:15]} 9. Nf3 {[%emt 0:00:13]} Re8 {[%emt 0:00:11]} 10. O-O {[%emt 0:00:07]} Nf8 {[%emt 0:00:08]} 11. h3 {[%emt 0:00:16]} Ne4 {[%emt 0:01:07]} 12. Bf4 {[%emt 0:00:20]} Ng5 {[%emt 0:00:14]} 13. Bxg5 {[%emt 0:08:52]} Bxg5 {[%emt 0:00:11]} 14. b4 {[%emt 0:00:08]} a6 {[%emt 0:03:16]} 15. a4 {[%emt 0:00:30]} Be7 {[%emt 0:00:26]} 16. b5 {[%emt 0:00:48]} a5 {[%emt 0:00:17]} 17. bxc6 {[%emt 0:02:42]} bxc6 {[%emt 0:00:06]} 18. Ne5 {[%emt 0:01:21]} Bb7 {[%emt 0:03:49]} 19. Rab1 {[%emt 0:06:37]} Bb4 {[%emt 0:01:53]} 20. Na2 {[%emt 0:00:54]} c5 {[%emt 0:00:49]} 21. Bb5 {[%emt 0:02:35]} Rxe5 {[%emt 0:01:24]} 22. dxe5 {[%emt 0:00:06]} Rc8 {[%emt 0:03:39]} 23. Rfd1 {[%emt 0:06:19]} Qe7 {[%emt 0:01:13]} 24. f4 {[%emt 0:02:34]} Ne6 {[%emt 0:03:59]} 25. Bd3 {[%emt 0:19:17]} g6 {[%emt 0:03:17]} 26. f5 {[%emt 0:06:16]} gxf5 {[%emt 0:06:46]} 27. Bxf5 {[%emt 0:00:08]} Kh8 {[%emt 0:03:20]} 28. Qf2 {[%emt 0:07:06]} Rg8 {[%emt 0:03:42]} 29. Bxe6 {[%emt 0:10:46]} fxe6 {[%emt 0:00:32]} 30. Rf1 {[%emt 0:02:54]} d4 {[%emt 0:06:00]} 31. g4 {[%emt 0:00:05]} d3 {[%emt 0:02:09]} 32. Qf4 {[%emt 0:01:38]} Bd5 {[%emt 0:02:44]} 33. Nxb4 {[%emt 0:01:50]} axb4 {[%emt 0:02:38]} 34. e4 {[%emt 0:00:27]} Bb7 {[%emt 0:01:45]} 35. Rbc1 {[%emt 0:02:57]} Rc8 {[%emt 0:04:23]} 36. Qh6 {[%emt 0:01:24]} Kg8 {[%emt 0:09:26]} 37. Rf6 {[%emt 0:00:43]} c4 {[%emt 0:12:51]} 38. Rcf1 {[%emt 0:01:38]} d2 {[%emt 0:01:16]} 39. Qxd2 {[%emt 0:01:43]} Bxe4 {[%emt 0:03:03]} 40. Qg5+ {[%emt 0:10:58]} Qg7 {[%emt 0:00:15]} 41. Qe3 {[%emt 0:00:02]} Bg6 {[%emt 0:01:00]} 42. a5 {[%emt 0:01:41]} c3 {[%emt 0:00:48]} 43. Qb6 {[%emt 0:01:34]} Qe7 {[%emt 0:01:52]} 44. Rxe6 {[%emt 0:01:04]} Qc5+ {[%emt 0:04:36]} 45. Kh2 {[%emt 0:00:02]} Bf7 {[%emt 0:04:37]} 46. Qxc5 {[%emt 0:00:51]} Rxc5 {[%emt 0:00:06]} 47. Re7 {[%emt 0:01:09]} Bd5 {[%emt 0:04:10]} 48. Re8+ {[%emt 0:00:05]} Kg7 {[%emt 0:00:05]} 49. Re7+ {[%emt 0:00:09]} Kg8 {[%emt 0:00:08]} 50. Re8+ {[%emt 0:01:04]} Kg7 {[%emt 0:00:06]} 51. e6 {[%emt 0:00:49]} Bxe6 {[%emt 0:06:20]} 52. Rxe6 {[%emt 0:00:07]} b3 {[%emt 0:00:01]} 53. Rb6 {[%emt 0:01:07]} b2 {[%emt 0:00:07]} 54. a6 {[%emt 0:00:12]} Ra5 {[%emt 0:00:09]} 55. Rd1 {[%emt 0:00:17]} 1-0